bitfinex/quotes_ETHUSD_20250508
["timestamp","ask_amount","ask_price","bid_price","bid_amount"]
[1746701184242,5.1266277,1950.6,1950.5,3.0]
[1746701184581,5.12689054,1950.5,1950.4,3.0]
[1746701185378,5.1266277,1950.6,1950.4,3.0]
[1746701185964,5.94500527,1950.7,1950.4,3.0]
[1746701186157,5.12689054,1950.5,1950.4,3.0]
[1746701187896,5.12680531,1950.6,1950.4,3.0]
[1746701188397,5.12689054,1950.5,1950.4,3.0]
[1746701189188,5.12689054,1950.5,1950.2,3.8289]
[1746701189391,5.12689054,1950.5,1950.2,5.56916916]
[1746701189744,5.12727536,1950.4,1950.2,5.56916916]
[1746701190452,5.12701059,1950.5,1950.2,4.74026916]
[1746701190453,5.12741629,1950.3,1950.2,4.74026916]
[1746701190775,5.12732986,1950.4,1950.1,3.15850541]
[1746701190981,5.12767921,1950.2,1950.1,0.39341384]
[1746701191280,5.12767921,1950.2,1950.0,3.0]
[1746701191580,5.12794215,1950.1,1950.0,0.37898137]
[1746701191770,5.12835496,1950.0,1949.6,0.8315]
[1746701191970,5.12829475,1950.0,1949.6,8.96060822]
[1746701192268,5.12808689,1950.1,1949.9,0.8205]
[1746701192882,5.12820512,1950.0,1949.9,0.8205]
[1746701193580,5.12851987,1949.9,1949.7,4.65056082]
[1746701194247,5.12851987,1949.9,1949.7,5.03927446]
[1746701194647,5.12820512,1950.0,1949.7,5.03927446]
[1746701194854,5.12820512,1950.0,1949.8,0.50392745]
[1746701195392,5.12736333,1950.4,1950.1,3.0]
[1746701195570,5.12750821,1950.3,1949.9,11.99661754]
[1746701195766,5.12750821,1950.3,1950.0,3.0]
[1746701196197,5.12736333,1950.4,1950.1,0.7632]
[1746701196496,5.12741897,1950.3,1950.1,0.7632]
[1746701196672,5.12736333,1950.4,1950.1,1.19079423]
[1746701196673,5.12729026,1950.4,1950.1,1.19079423]
[1746701197188,5.12703077,1950.5,1950.1,1.19079423]
[1746701197189,5.12703077,1950.5,1950.2,3.0]
[1746701197491,10.25415415,1950.5,1950.2,3.30355946]
[1746701197690,5.12737121,1950.4,1950.2,0.30355946]
[1746701197894,5.12704545,1950.5,1950.2,0.8278]
[1746701198097,5.12704545,1950.5,1950.3,0.30348094]
[1746701198483,5.12628108,1950.8,1950.4,0.8278]
[1746701198677,5.12647605,1950.7,1950.5,0.3026218]
[1746701199002,5.12593843,1950.9,1950.6,0.8323]
[1746701199170,5.12599253,1950.9,1950.6,0.8323]
[1746701199499,5.12599253,1950.9,1950.7,0.30137568]
[1746701199794,10.25206297,1950.9,1950.6,0.8323]
[1746701200000,5.12599253,1950.9,1950.8,0.30063285]
[1746701200197,5.12599253,1950.9,1950.7,0.30099207]
[1746701200499,5.12599253,1950.9,1950.8,0.30035206]
[1746701200698,10.25206439,1950.9,1950.6,0.8323]
[1746701200898,5.12599253,1950.9,1950.7,0.30078146]
[1746701201067,5.12611501,1950.8,1950.6,1.72821607]
[1746701201269,5.12611501,1950.8,1950.7,0.30078146]
[1746701201468,5.12611501,1950.8,1950.6,0.8323]
[1746701201698,5.12611501,1950.8,1950.7,0.30078146]
[1746701201920,5.12636489,1950.7,1950.5,3.0]
[1746701202209,5.12636489,1950.7,1950.5,0.7712]
[1746701202210,5.12676457,1950.6,1950.5,0.7712]
[1746701202372,5.12689054,1950.5,1950.4,9.08]
[1746701202702,10.25402304,1950.5,1950.3,0.7712]
[1746701202872,5.12689054,1950.5,1950.3,3.7712]
[1746701203072,5.12689054,1950.5,1950.3,3.0]
[1746701203073,5.1271534,1950.4,1950.3,3.0]
[1746701203287,5.12712608,1950.5,1950.3,3.0]
[1746701203491,5.12689302,1950.5,1950.3,3.908]
[1746701203675,5.12678806,1950.6,1950.3,3.908]
[1746701203884,5.12678806,1950.6,1950.4,0.7712]
[1746701204077,5.12689054,1950.5,1950.4,0.7712]
[1746701204279,5.12689054,1950.5,1950.3,3.0]
[1746701204494,5.12678806,1950.6,1950.3,4.6792]
[1746701204667,5.12643685,1950.7,1950.3,9.80645771]
[1746701204871,5.12624801,1950.8,1950.4,5.17836475]
[1746701205074,5.12624801,1950.8,1950.5,3.8223]
[1746701205384,5.12598513,1950.9,1950.5,3.8223]
[1746701205584,10.25205592,1950.9,1950.6,0.38223]
[1746701205773,5.12622756,1950.8,1950.5,3.8223]
[1746701206704,5.12611918,1950.8,1950.5,3.8223]
[1746701206999,5.1266277,1950.6,1950.5,3.0]
[1746701207518,5.12809417,1950.1,1949.9,3.43819663]
[1746701207806,5.12820512,1950.0,1949.9,3.43819663]
[1746701207991,5.12806238,1950.1,1949.9,6.43819663]
[1746701208502,5.12820512,1950.0,1949.9,3.43819663]
[1746701208698,5.12820512,1950.0,1949.7,1.14161364]
[1746701208904,10.2563004,1950.1,1949.7,6.27059642]
[1746701209072,5.12836582,1950.0,1949.8,0.62705964]
[1746701209907,5.12836582,1950.0,1949.7,1.14161364]
[1746701209908,5.12836582,1950.0,1949.7,4.14161364]
[1746701210117,5.12809179,1950.1,1949.7,4.14161364]
[1746701210326,5.12828214,1950.0,1949.7,4.14161364]
[1746701211215,5.12809179,1950.1,1949.7,4.14161364]
[1746701211424,5.12809179,1950.1,1949.7,9.27057667]
[1746701211595,5.12809179,1950.1,1949.7,11.84914209]
[1746701212388,5.12809179,1950.1,1949.8,0.25625342]
[1746701213016,10.2567859,1950.0,1949.8,0.25625342]
[1746701213200,5.12831782,1950.0,1949.8,0.25625342]
[1746701214030,5.12779844,1950.2,1949.8,0.25625342]
[1746701214215,5.12795756,1950.1,1949.8,6.59549965]
[1746701215137,5.12795756,1950.1,1949.8,1.46677417]
[1746701215433,5.12781999,1950.2,1949.8,6.59550146]
[1746701215594,10.25573792,1950.2,1949.8,6.59550146]
[1746701215937,5.12810634,1950.1,1949.8,1.46677417]
[1746701216406,5.12846812,1949.9,1949.8,0.25625342]
[1746701216924,5.12809208,1950.1,1949.8,0.25625342]
[1746701217138,5.12779868,1950.2,1949.8,8.38483936]
[1746701217433,5.12779868,1950.2,1949.8,8.38482239]
[1746701220240,5.12759173,1950.3,1949.8,8.43607091]
[1746701220437,5.12730964,1950.4,1950.1,0.7979]
[1746701220839,5.12730964,1950.4,1950.2,0.25481517]
[1746701220999,5.12699738,1950.5,1950.2,3.25481517]
[1746701221202,5.12665877,1950.6,1950.3,5.1273272]
[1746701221405,5.12557662,1951.0,1950.3,5.1273272]
[1746701221406,5.12640382,1950.7,1950.4,1.31843272]
[1746701221601,5.12665978,1950.6,1950.4,3.8057]
[1746701221927,5.12665978,1950.6,1950.5,0.25373686]
[1746701222326,5.12654387,1950.7,1950.5,0.25373686]
[1746701222701,10.25316634,1950.7,1950.5,0.25373686]
[1746701222901,5.12654387,1950.7,1950.5,0.25373686]
[1746701223844,5.1266277,1950.6,1950.5,0.25373686]
[1746701224139,5.12625515,1950.8,1950.5,0.25373686]
[1746701224140,5.12640844,1950.7,1950.5,0.25373686]
[1746701224541,10.25298557,1950.7,1950.5,0.25373686]
[1746701224843,5.1266277,1950.6,1950.5,0.25373686]
[1746701225342,5.1266277,1950.6,1950.2,3.8158]
[1746701225343,5.1270189,1950.5,1950.2,3.8158]
[1746701225638,5.1270189,1950.5,1950.2,4.71016044]
[1746701226046,5.12705911,1950.5,1950.2,4.71016044]
[1746701226231,5.1261442,1950.8,1950.2,1.71016044]
[1746701226539,5.12706495,1950.5,1950.2,0.8158]
[1746701227453,10.25422032,1950.5,1950.3,0.25476829]
[1746701227602,5.1271534,1950.4,1950.3,0.25476829]
[1746701228239,5.12705711,1950.5,1950.3,3.25476829]
[1746701228845,5.12705711,1950.5,1950.3,0.25476829]
[1746701230213,5.12668228,1950.6,1950.3,3.25476829]
[1746701230743,5.1264741,1950.7,1950.3,4.17458433]
[1746701231038,5.12664953,1950.6,1950.3,9.3018703]
[1746701231210,5.87759467,1951.0,1950.4,5.92405138]
[1746701231211,5.12621097,1950.8,1950.4,5.92405138]
[1746701231406,5.12621097,1950.8,1950.5,0.25333155]
[1746701232455,5.12646034,1950.7,1950.5,0.25333155]
[1746701234039,5.1266277,1950.6,1950.5,0.25333155]
[1746701234240,5.1266277,1950.6,1950.2,5.89523201]
[1746701234441,5.1266277,1950.6,1950.3,0.25340648]
[1746701235855,0.815,1950.7,1950.3,0.25340648]
[1746701235856,0.8058,1950.4,1950.3,0.25340648]
[1746701236010,5.12796518,1950.1,1949.9,3.42736035]
[1746701236210,5.12780029,1950.2,1950.0,0.25366735]
[1746701236416,5.12791523,1950.2,1950.0,0.25366735]
[1746701236616,5.12794215,1950.1,1950.0,0.25366735]
[1746701236815,5.12791523,1950.2,1950.0,0.25366735]
[1746701237416,5.93305837,1950.4,1950.0,9.52407379]
[1746701237617,5.12716292,1950.4,1950.1,5.12791439]
[1746701237858,5.12716292,1950.4,1950.2,0.23296827]
[1746701238041,5.12716292,1950.4,1950.0,9.27043989]
[1746701238249,5.12716292,1950.4,1950.1,0.23339788]
[1746701239136,10.43104267,1950.5,1950.1,5.36130665]
[1746701239457,5.12672944,1950.6,1950.2,5.90245473]
[1746701239636,5.12698762,1950.5,1950.3,0.23206038]
[1746701241520,5.88477578,1950.6,1950.3,0.23206038]
[1746701241521,5.88476447,1950.6,1950.3,0.23206038]
[1746701241855,5.89062318,1950.8,1950.5,3.0]
[1746701242055,5.89062318,1950.8,1950.6,0.23142752]
[1746701244071,5.12636489,1950.7,1950.6,0.23142752]
[1746701244373,5.12636489,1950.7,1950.3,13.25449259]
[1746701244660,5.89077833,1950.8,1950.4,6.45243271]
[1746701244962,5.89077833,1950.8,1950.5,0.2317868]
[1746701246325,5.12639141,1950.7,1950.5,0.2317868]
[1746701246526,5.89077383,1950.8,1950.5,3.0]
[1746701246840,5.89077383,1950.8,1950.6,0.23142752]
[1746701247040,0.7645,1950.8,1950.6,0.23142752]
[1746701247482,10.43045198,1951.1,1950.7,3.0]
[1746701247764,10.43045198,1951.1,1950.8,0.23141073]
[1746701247940,5.12545198,1951.1,1950.8,0.23141073]
[1746701248136,5.12545198,1951.1,1950.8,1.00221073]
[1746701248340,5.12534321,1951.1,1950.8,0.23141073]
[1746701248540,5.95223935,1950.9,1950.8,0.23141073]
[1746701248764,5.12642731,1950.7,1950.4,0.7578]
[1746701248966,5.303,1951.0,1950.5,8.12678812]
[1746701249278,5.12593547,1950.9,1950.5,8.34023774]
[1746701249429,5.12593547,1950.9,1950.6,0.83402377]
[1746701249631,5.12593547,1950.9,1950.7,0.21275477]
[1746701249961,5.12656941,1950.7,1950.4,4.18516035]
[1746701250134,5.12601831,1950.9,1950.4,12.31211962]
[1746701250440,5.12611436,1950.8,1950.4,12.31211962]
[1746701250768,5.12648049,1950.7,1950.5,1.23121196]
[1746701251071,5.12591035,1950.9,1950.5,1.23121196]
[1746701251271,5.12591035,1950.9,1950.6,0.7988]
[1746701251746,5.12621039,1950.8,1950.6,0.7988]
[1746701252267,5.12595703,1950.9,1950.6,0.7988]
[1746701253484,5.12611626,1950.8,1950.6,0.7988]
[1746701253785,5.12595966,1950.9,1950.6,0.7988]
[1746701254285,5.12571921,1951.0,1950.7,3.0]
[1746701254781,5.1253312,1951.1,1950.7,8.17748621]
[1746701255776,5.1253312,1951.1,1950.8,0.7652]
[1746701256777,5.12558038,1951.0,1950.8,0.7652]
[1746701256956,5.1253312,1951.1,1950.8,0.7652]
[1746701257152,5.1253312,1951.1,1950.9,0.21187017]
[1746701257490,5.89377662,1951.0,1950.9,0.21187017]
[1746701257782,5.12677989,1950.6,1950.4,3.0]
[1746701258145,5.12677989,1950.6,1950.5,0.21330719]
[1746701261894,5.1266277,1950.6,1950.1,3.7831]
[1746701262099,0.8179,1950.7,1950.2,0.21486017]
[1746701262300,5.1273223,1950.4,1950.1,0.7831]
[1746701262472,5.12736547,1950.4,1950.2,0.1958327]
[1746701262677,5.12701659,1950.5,1950.1,6.85333908]
[1746701263009,5.12701659,1950.5,1950.2,0.1958327]
[1746701263367,5.12701659,1950.5,1950.1,6.85331942]
[1746701263568,5.12701659,1950.5,1950.2,0.1958327]
[1746701263803,5.12701659,1950.5,1950.2,0.70491521]
[1746701263969,5.12701659,1950.5,1950.3,0.19547328]
[1746701265171,10.25415177,1950.5,1950.3,0.19547328]
[1746701265372,5.12701659,1950.5,1950.3,0.19547328]
[1746701266002,5.12670913,1950.6,1950.3,0.19547328]
[1746701266195,5.12652324,1950.7,1950.4,0.8149]
[1746701266574,5.12652324,1950.7,1950.5,0.19475455]
[1746701267378,5.12666709,1950.6,1950.5,0.19475455]
[1746701267582,6.32704777,1951.1,1950.5,0.19475455]
[1746701267583,10.25254984,1950.8,1950.5,0.19475455]
[1746701267786,5.12621474,1950.8,1950.5,3.19475455]
[1746701268091,5.1266277,1950.6,1950.5,4.11354659]
[1746701268384,5.1266277,1950.6,1950.5,3.19475455]
[1746701268878,5.1266277,1950.6,1950.5,0.19475455]
[1746701269200,10.25298693,1950.7,1950.5,0.19475455]
[1746701269402,5.12636714,1950.7,1950.5,0.19475455]
[1746701270110,5.12577523,1951.0,1950.6,0.8094]
[1746701270310,10.25091177,1951.1,1950.7,5.32038766]
[1746701270481,10.25091177,1951.1,1950.7,3.19403596]
[1746701270482,5.12569896,1951.0,1950.7,3.19403596]
[1746701270804,5.88456824,1951.4,1950.8,3.0]
[1746701271008,5.12543412,1951.1,1950.9,0.8213]
[1746701271190,10.25050382,1951.2,1950.9,1.01383411]
[1746701271822,5.12533468,1951.1,1950.9,1.01383411]
[1746701272105,5.12557662,1951.0,1950.9,0.19253411]
[1746701272309,5.12557662,1951.0,1950.7,9.21383519]
[1746701272607,5.12557662,1951.0,1950.8,0.19265595]
[1746701274509,5.12583935,1950.9,1950.8,0.19265595]
[1746701275482,5.12557662,1951.0,1950.8,0.19265595]
[1746701276606,5.12583935,1950.9,1950.8,0.19265595]
[1746701282332,5.12559209,1951.0,1950.8,0.19265595]
[1746701282683,5.12513223,1951.2,1950.8,4.28852154]
[1746701283027,5.1253267,1951.1,1950.8,9.46576829]
[1746701283399,10.2504125,1951.2,1950.8,1.33978265]
[1746701283601,5.302,1951.7,1951.2,0.7766]
[1746701283799,5.12412018,1951.6,1951.2,8.95277481]
[1746701283999,5.12412018,1951.6,1951.3,0.19076534]
[1746701284222,10.24788791,1951.7,1951.3,5.3154497]
[1746701284601,5.12452598,1951.4,1951.3,0.58133184]
[1746701284927,5.12417201,1951.6,1951.3,0.58133184]
[1746701285126,5.12417201,1951.6,1951.3,2.05981531]
[1746701286623,0.430338,1951.8,1951.4,0.7766]
[1746701286837,5.12426338,1951.5,1951.3,2.05981531]
[1746701286992,5.12426338,1951.5,1951.3,1.86904997]
[1746701287330,5.12426338,1951.5,1951.4,0.18903011]
[1746701287490,5.12426338,1951.5,1951.3,0.3905665]
[1746701287491,10.24876365,1951.5,1951.3,0.3905665]
[1746701287824,5.12505125,1951.2,1951.1,3.42736035]
[1746701288127,5.12495086,1951.3,1951.1,6.42736035]
[1746701288628,5.1245505,1951.4,1951.1,6.42736035]
[1746701288790,5.12480006,1951.3,1951.1,6.42736035]
[1746701290133,5.12480006,1951.3,1951.1,3.0]
[1746701290306,0.430338,1951.8,1951.2,0.7721]
[1746701290648,5.12414612,1951.6,1951.3,3.0]
[1746701291125,5.12426771,1951.5,1951.3,3.0]
[1746701291291,5.12414612,1951.6,1951.3,3.0]
[1746701291292,5.12452598,1951.4,1951.3,3.0]
[1746701291497,5.12444258,1951.5,1951.3,3.0]
[1746701291831,5.12452598,1951.4,1951.2,0.7721]
[1746701292048,5.12444258,1951.5,1951.2,1.18777815]
[1746701292222,5.12475012,1951.4,1951.2,0.7721]
[1746701292561,5.12468075,1951.4,1951.1,3.38468146]
[1746701293305,5.12479844,1951.3,1951.1,3.38468146]
[1746701294423,5.12505125,1951.2,1951.1,3.38468146]
[1746701294728,4.12505125,1951.2,1951.1,3.38468146]
[1746701295510,5.1249157,1951.3,1951.1,3.38468146]
[1746701295830,10.24995799,1951.3,1951.1,3.38468146]
[1746701296024,5.12505125,1951.2,1951.1,3.38468146]
[1746701296410,5.12496677,1951.3,1951.1,3.38468146]
[1746701296921,10.24997968,1951.3,1951.1,3.38468146]
[1746701297228,5.12466404,1951.4,1951.1,3.38468146]
[1746701297399,5.12466404,1951.4,1951.1,4.40835961]
[1746701297601,5.12583935,1950.9,1950.8,6.39926559]
[1746701297796,5.12583935,1950.9,1950.7,10.28836035]
[1746701298000,5.12583935,1950.9,1950.8,3.0]
[1746701298299,5.12583935,1950.9,1950.7,4.20836035]
[1746701298300,5.12610211,1950.8,1950.7,4.20836035]
[1746701298499,5.12610211,1950.8,1950.7,4.60052902]
[1746701299021,5.12610211,1950.8,1950.7,6.81952902]
[1746701300550,5.12583935,1950.9,1950.8,3.0]
[1746701300742,5.12610211,1950.8,1950.7,3.81952902]
[1746701301048,5.12610211,1950.8,1950.7,3.42736035]
[1746701301254,5.93651498,1950.9,1950.7,3.42736035]
[1746701301454,5.12601498,1950.9,1950.7,3.42736035]
[1746701301951,5.12610211,1950.8,1950.7,3.42736035]
[1746701302150,5.12610211,1950.8,1950.7,3.60207925]
[1746701306665,5.12610211,1950.8,1950.7,0.1747189]
[1746701306962,5.12610211,1950.8,1950.5,3.0]
[1746701306963,5.12646415,1950.7,1950.5,3.0]
[1746701307134,5.12646415,1950.7,1950.6,0.17514841]
[1746701307331,5.90506415,1950.7,1950.6,0.17514841]
[1746701307530,5.90506415,1950.7,1950.2,0.799]
[1746701307531,5.12709576,1950.5,1950.2,0.799]
[1746701307864,5.1272426,1950.4,1950.3,0.1762265]
[1746701308033,5.1272426,1950.4,1950.3,0.56648928]
[1746701308431,5.12675283,1950.6,1950.3,1.00303821]
[1746701308932,5.12653353,1950.7,1950.3,6.13035404]
[1746701309852,10.25310815,1950.7,1950.3,6.13035404]
[1746701310068,5.12653353,1950.7,1950.3,6.13035404]
[1746701310564,5.12671677,1950.6,1950.3,1.00303821]
[1746701310765,5.1269259,1950.5,1950.3,1.00303821]
[1746701311462,5.12677059,1950.6,1950.3,1.00303821]
[1746701312161,5.12692883,1950.5,1950.3,1.00303821]
[1746701312567,10.2540737,1950.5,1950.3,0.56648928]
[1746701312755,5.1271534,1950.4,1950.3,0.56648928]
[1746701313153,5.12705319,1950.5,1950.3,0.56648928]
[1746701313467,5.12674551,1950.6,1950.3,1.32118928]
[1746701314464,5.12645081,1950.7,1950.3,6.44856961]
[1746701314770,5.12645081,1950.7,1950.4,3.0]
[1746701314972,5.12645081,1950.7,1950.4,3.1789513]
[1746701315272,10.25305945,1950.7,1950.4,3.1789513]
[1746701315472,5.12666294,1950.6,1950.4,3.1789513]
[1746701316264,5.12623182,1950.8,1950.4,8.7383904]
[1746701316691,5.12623182,1950.8,1950.5,5.1268453]
[1746701317046,5.12546495,1951.1,1950.7,5.88448641]
[1746701317352,5.12546495,1951.1,1950.8,3.17748929]
[1746701320345,5.1255815,1951.0,1950.8,3.17748929]
[1746701321368,5.12544239,1951.1,1950.8,4.08368435]
[1746701321558,5.12544239,1951.1,1950.8,3.17748929]
[1746701322244,5.12569274,1951.0,1950.8,3.17748929]
[1746701323494,5.12547072,1951.1,1950.8,3.17748929]
[1746701323852,5.12558973,1951.0,1950.8,3.17748929]
[1746701325184,5.12583935,1950.9,1950.8,3.17748929]
[1746701326874,6.23186226,1950.9,1950.8,0.17748929]
[1746701327199,5.126796,1950.6,1950.4,3.0]
[1746701327409,5.12689054,1950.5,1950.4,3.0]
[1746701327608,5.12689054,1950.5,1950.3,4.62702313]
[1746701327791,5.12679632,1950.6,1950.3,4.62702313]
[1746701328109,5.12689054,1950.5,1950.4,3.0]
[1746701328262,5.1271534,1950.4,1950.3,3.81762313]
[1746701328897,5.1271534,1950.4,1950.3,3.39026278]
[1746701329070,5.9582534,1950.4,1950.3,3.39026278]
[1746701329275,5.12772577,1950.2,1949.9,10.29236035]
[1746701329482,5.12772577,1950.2,1949.9,11.41802028]
[1746701329806,5.12760802,1950.3,1950.0,3.0]
[1746701329962,5.12729623,1950.4,1950.0,8.12820059]
[1746701330524,5.12729623,1950.4,1950.0,8.50963018]
[1746701330683,5.12729623,1950.4,1950.0,10.52767584]
[1746701331318,10.25468827,1950.4,1950.0,10.52767584]
[1746701331518,5.12744551,1950.3,1950.0,5.39947525]
[1746701331919,5.12701949,1950.5,1950.0,5.39947525]
[1746701332118,5.12732984,1950.4,1950.0,10.52751491]
[1746701332421,5.12732984,1950.4,1950.1,0.151825]
[1746701332577,5.92197537,1950.7,1950.2,0.8119]
[1746701332779,5.92197537,1950.7,1950.3,8.32966398]
[1746701332780,5.12647537,1950.7,1950.3,8.32966398]
[1746701333078,5.12620197,1950.8,1950.5,3.8119]
[1746701333280,5.1259625,1950.9,1950.5,8.98997485]
[1746701333524,5.1259625,1950.9,1950.6,0.1506432]
[1746701334096,5.12569211,1951.0,1950.6,0.1506432]
[1746701334289,5.12569211,1951.0,1950.7,3.0]
[1746701334494,5.12569211,1951.0,1950.8,0.8304]
[1746701334693,5.12569211,1951.0,1950.8,0.98032462]
[1746701337621,5.12544383,1951.1,1950.8,3.98032462]
[1746701337993,5.12579185,1951.0,1950.8,0.14992462]
[1746701338184,5.12583935,1950.9,1950.6,3.7572]
[1746701338386,5.12583935,1950.9,1950.7,0.52477498]
[1746701339526,5.12575546,1951.0,1950.7,0.52477498]
[1746701339832,5.12557723,1951.0,1950.8,3.0]
[1746701339998,5.12557723,1951.0,1950.9,0.14819606]
[1746701341235,10.25136661,1951.0,1950.6,8.88379454]
[1746701341450,5.12557723,1951.0,1950.7,1.03708334]
[1746701342056,5.12557723,1951.0,1950.7,4.03708334]
[1746701342623,5.12543313,1951.1,1950.7,9.16342037]
[1746701342828,5.12518077,1951.2,1950.9,3.7971]
[1746701343057,5.12518077,1951.2,1951.0,0.14769647]
[1746701343866,5.12531392,1951.1,1951.0,0.52353105]
[1746701346565,6.66287916,1951.1,1951.0,0.14769647]
[1746701346867,5.12564603,1951.0,1950.7,3.7903]
[1746701347080,5.12541199,1951.1,1951.0,0.14731638]
[1746701347257,5.12541199,1951.1,1950.7,8.91657949]
[1746701347433,5.12541199,1951.1,1951.0,0.14731638]
[1746701347765,5.12541199,1951.1,1950.8,5.12608356]
[1746701347972,5.12541199,1951.1,1951.0,0.14717597]
[1746701348174,5.12541199,1951.1,1950.9,0.14753514]
[1746701348374,5.12541199,1951.1,1951.0,0.14717597]
[1746701348741,5.12541199,1951.1,1950.8,5.12601739]
[1746701348974,5.12541199,1951.1,1951.0,0.14717597]
[1746701349135,5.12552279,1951.1,1950.9,0.14753514]
[1746701349338,5.12552279,1951.1,1951.0,0.14724618]
[1746701349641,10.25106099,1951.1,1950.7,8.91649326]
[1746701349860,5.12552279,1951.1,1950.8,4.03968411]
[1746701350064,5.12568939,1951.0,1950.8,3.14803478]
[1746701353774,5.1254321,1951.1,1950.8,3.14803478]
[1746701354143,5.1254321,1951.1,1950.8,3.97683478]
[1746701356161,5.12519242,1951.2,1950.8,9.10293616]
[1746701356445,5.12519242,1951.2,1950.8,9.10275946]
[1746701356640,5.12462515,1951.4,1951.1,5.12527384]
[1746701356872,5.12462515,1951.4,1951.2,0.14645773]
[1746701356873,5.12452751,1951.4,1951.2,0.14645773]
[1746701357374,5.12452751,1951.4,1951.1,5.12520502]
[1746701357571,5.12452751,1951.4,1951.3,0.14515558]
[1746701357878,5.12455925,1951.4,1951.3,0.14522577]
[1746701358073,5.12455925,1951.4,1951.0,8.98714435]
[1746701358281,5.12455925,1951.4,1951.3,0.14522577]
[1746701358573,5.12455925,1951.4,1951.0,9.37184649]
[1746701358775,5.12455925,1951.4,1951.1,5.1252908]
[1746701359158,4.12438056,1951.5,1951.2,0.14558482]
[1746701359470,9.2488708,1951.5,1951.1,5.1252908]
[1746701359656,4.12438056,1951.5,1951.3,0.1450152]
[1746701359858,4.12438056,1951.5,1951.1,5.1252908]
[1746701360059,5.12452598,1951.4,1951.2,0.14572521]
[1746701360259,5.12452598,1951.4,1951.0,9.37187149]
[1746701360484,5.12452598,1951.4,1951.1,0.14608431]
[1746701361067,5.12505125,1951.2,1951.1,0.14608431]
[1746701365089,5.12554251,1951.1,1950.7,8.89376838]
[1746701365394,5.12554251,1951.1,1950.7,14.07114956]
[1746701365553,5.12554251,1951.1,1950.7,8.89367761]
[1746701365745,5.12554251,1951.1,1950.7,8.94493409]
[1746701365971,5.12554251,1951.1,1950.8,0.89449341]
[1746701366589,5.12554251,1951.1,1950.8,3.89449341]
[1746701367595,5.12514647,1951.2,1950.8,9.02046173]
[1746701368191,10.25043083,1951.2,1950.8,9.02046173]
[1746701368596,5.12514647,1951.2,1950.8,9.02046173]
[1746701368792,5.12514647,1951.2,1950.9,0.90204617]
[1746701368955,5.12514647,1951.2,1951.0,0.7977]
[1746701369998,5.12514647,1951.2,1950.9,0.90204617]
[1746701369999,5.12555496,1951.1,1950.8,1.70199341]
[1746701370163,5.12572266,1951.0,1950.8,1.70199341]
[1746701370477,5.12572266,1951.0,1950.7,3.797]
[1746701370856,5.12572266,1951.0,1950.7,8.92336212]
[1746701372286,5.12572266,1951.0,1950.7,3.797]
[1746701372784,5.12610211,1950.8,1950.7,3.0]
[1746701373155,5.12601953,1950.9,1950.7,3.0]
[1746701373758,5.12601953,1950.9,1950.7,3.7614]
[1746701373992,5.12601953,1950.9,1950.7,4.48027604]
[1746701374672,5.12573294,1951.0,1950.7,4.48027604]
[1746701375004,5.12584791,1950.9,1950.7,4.48027604]
[1746701375296,5.12584791,1950.9,1950.7,3.71887604]
[1746701375498,5.12577189,1951.0,1950.7,3.0]
[1746701377401,5.12577189,1951.0,1950.8,0.14734735]
[1746701377768,5.12583935,1950.9,1950.8,0.14734735]
[1746701379582,5.12577189,1951.0,1950.8,0.14734735]
[1746701380810,5.1254691,1951.1,1950.8,0.97714735]
[1746701383110,5.91505583,1951.2,1950.8,0.97714735]
[1746701383401,5.91505583,1951.2,1950.8,3.97714735]
[1746701383608,5.91505583,1951.2,1950.8,10.01340368]
[1746701384016,5.12429364,1951.5,1951.0,5.12536472]
[1746701384017,5.12458321,1951.4,1951.0,5.12536472]
[1746701384212,5.12458321,1951.4,1951.0,5.50107428]
[1746701384507,5.12417653,1951.6,1951.2,5.12500995]
[1746701385004,5.55390877,1951.8,1951.5,5.12425983]
[1746701385882,5.55390877,1951.8,1951.4,8.94336308]
[1746701386082,5.12375022,1951.7,1951.5,0.1443178]
[1746701386416,5.12375022,1951.7,1951.5,3.1443178]
[1746701387190,5.55392335,1951.8,1951.5,3.1443178]
[1746701387490,5.55392335,1951.8,1951.5,3.52729618]
[1746701387689,0.430338,1951.8,1951.5,8.65147165]
[1746701388111,0.430338,1951.8,1951.5,10.11096946]
[1746701388416,0.005,1952.0,1951.9,5.67321327]
[1746701388583,6.87953045,1954.6,1952.6,0.2676]
[1746701388784,16.39,1956.6,1954.0,2.56071814]
[1746701389016,0.5,1957.3,1956.5,0.1]
[1746701389182,0.5,1957.3,1956.6,12.800035]
[1746701389385,0.5,1957.3,1956.9,3.0]
[1746701389617,6.9301,1957.2,1957.1,3.55]
[1746701389912,5.11091038,1956.6,1955.3,5.11417865]
[1746701390117,5.11091038,1956.6,1955.0,5.6306041]
[1746701390118,5.11142915,1956.4,1955.0,0.51568116]
[1746701390340,19.68381423,1957.2,1955.1,0.60510726]
[1746701390542,0.8275,1956.7,1955.1,0.1]
[1746701390708,0.8275,1956.7,1954.5,0.46408823]
[1746701390709,5.11142915,1956.4,1955.0,3.1]
[1746701390912,0.05108117,1956.3,1955.1,0.05112273]
[1746701391143,27.212,1956.2,1954.9,0.1]
[1746701391307,5.11520298,1955.0,1954.4,0.05114311]
[1746701391506,5.11520298,1955.0,1953.8,6.01102051]
[1746701391507,0.05108117,1955.1,1953.9,0.46288675]
[1746701391712,8.769,1955.1,1954.0,8.11770726]
[1746701391941,9.049,1955.4,1954.5,8.11635802]
[1746701392140,9.049,1955.4,1954.3,3.0]
[1746701392360,9.049,1955.4,1954.9,5.11532958]
[1746701392556,9.049,1955.4,1954.9,0.51153296]
[1746701392821,9.049,1955.4,1954.5,3.0]
[1746701392822,18.443,1955.9,1954.5,3.0]
[1746701393025,9.049,1955.8,1954.8,0.819]
[1746701393428,9.049,1955.8,1954.9,0.12083435]
[1746701393719,18.443,1955.9,1954.8,0.819]
[1746701393930,12.75023938,1956.4,1955.9,18.183061]
[1746701394143,12.75023938,1956.4,1956.0,3.0]
[1746701394447,32.59152048,1956.4,1956.0,0.11690219]
[1746701394620,5.11299723,1955.8,1955.7,4.44734364]
[1746701394824,5.11299723,1955.8,1955.4,5.47365371]
[1746701394825,5.11378164,1955.5,1955.4,5.47365371]
[1746701395009,15.18151243,1955.5,1955.4,0.26180493]
[1746701395213,6.13651243,1955.5,1955.4,0.26180493]
[1746701395440,15.18151243,1955.5,1955.4,0.26180493]
[1746701395939,15.95361243,1955.5,1955.4,0.15115243]
[1746701396649,3.86420746,1955.5,1955.1,6.49996378]
[1746701396847,8.97821755,1955.5,1955.1,6.49996378]
[1746701397036,5.11404703,1955.4,1955.1,6.49996378]
[1746701397344,5.11456628,1955.2,1955.1,6.49996378]
[1746701397525,5.11535116,1954.9,1954.8,6.49996378]
[1746701397723,8.97680369,1954.9,1954.8,6.49996378]
[1746701397918,5.11692165,1954.3,1954.2,8.55258393]
[1746701398243,32.59092165,1954.3,1954.2,8.55258393]